[Event "*** SCC Grand Prix: Titled Tuesday Blitz"]
[Site "Chess.com"]
[Date "2020.06.02"]
[Round "10"]
[White "ChessQueen"]
[Black "swimmerchess"]
[Result "1/2-1/2"]
[WhiteElo "2676"]
[BlackElo "2822"]
[TimeControl "180+1"]
[EndTime "11:58:47 PDT"]
[Termination "Game drawn by repetition"]

1. e4 {[%clk 0:03:00.9]} 1... e5 {[%clk 0:02:59.6]} 2. Nf3 {[%clk 0:02:59.9]}
2... Nc6 {[%clk 0:03:00]} 3. Bb5 {[%clk 0:02:59.5]} 3... a6 {[%clk 0:03:00.1]}
4. Ba4 {[%clk 0:02:59.5]} 4... Nf6 {[%clk 0:03:00.3]} 5. d4 {[%clk 0:02:59.3]}
5... exd4 {[%clk 0:02:58.8]} 6. O-O {[%clk 0:02:58.3]} 6... Be7 {[%clk
0:02:55.1]} 7. e5 {[%clk 0:02:57.8]} 7... Ne4 {[%clk 0:02:50.4]} 8. Nxd4 {[%clk
0:02:57.9]} 8... Nc5 {[%clk 0:02:48.4]} 9. Nf5 {[%clk 0:02:54.7]} 9... O-O
{[%clk 0:02:21.8]} 10. Qg4 {[%clk 0:02:52.3]} 10... Ne6 {[%clk 0:02:15.9]} 11.
Bxc6 {[%clk 0:02:03.2]} 11... dxc6 {[%clk 0:02:16.8]} 12. Rd1 {[%clk 0:01:34.4]}
12... Qe8 {[%clk 0:01:40.1]} 13. Bh6 {[%clk 0:01:28.9]} 13... g6 {[%clk
0:01:40]} 14. Nxe7+ {[%clk 0:01:23.2]} 14... Qxe7 {[%clk 0:01:40]} 15. Bxf8
{[%clk 0:01:23.7]} 15... Nxf8 {[%clk 0:01:40.6]} 16. Qg3 {[%clk 0:01:23.5]}
16... Bf5 {[%clk 0:01:40]} 17. Nc3 {[%clk 0:01:18.8]} 17... Re8 {[%clk
0:01:39.7]} 18. Re1 {[%clk 0:01:15.3]} 18... Bxc2 {[%clk 0:01:39.5]} 19. Rac1
{[%clk 0:01:10.2]} 19... Bf5 {[%clk 0:01:39.2]} 20. Rcd1 {[%clk 0:01:10.7]}
20... Nd7 {[%clk 0:01:38.4]} 21. f4 {[%clk 0:01:08.8]} 21... h5 {[%clk
0:01:38.5]} 22. h3 {[%clk 0:01:05.8]} 22... h4 {[%clk 0:01:35.8]} 23. Qf2 {[%clk
0:01:05.4]} 23... Nc5 {[%clk 0:01:35.7]} 24. Re2 {[%clk 0:00:56.7]} 24... a5
{[%clk 0:01:35]} 25. Red2 {[%clk 0:00:56.2]} 25... Kg7 {[%clk 0:01:32.9]} 26.
Qd4 {[%clk 0:00:52.4]} 26... Ne6 {[%clk 0:01:30.8]} 27. Qe3 {[%clk 0:00:52.7]}
27... Qb4 {[%clk 0:01:30.9]} 28. Ne2 {[%clk 0:00:47.4]} 28... c5 {[%clk
0:01:19.8]} 29. b3 {[%clk 0:00:45]} 29... a4 {[%clk 0:01:16.5]} 30. Kh2 {[%clk
0:00:42.6]} 30... b6 {[%clk 0:01:14]} 31. g4 {[%clk 0:00:40.8]} 31... hxg3+
{[%clk 0:01:13.7]} 32. Nxg3 {[%clk 0:00:41.1]} 32... Qxf4 {[%clk 0:00:55]} 33.
Qxf4 {[%clk 0:00:40.2]} 33... Nxf4 {[%clk 0:00:55.9]} 34. Nxf5+ {[%clk
0:00:40.9]} 34... gxf5 {[%clk 0:00:56.5]} 35. Rf1 {[%clk 0:00:34.3]} 35... Ng6
{[%clk 0:00:56.7]} 36. Rxf5 {[%clk 0:00:33.6]} 36... axb3 {[%clk 0:00:56.9]} 37.
axb3 {[%clk 0:00:33.3]} 37... Rxe5 {[%clk 0:00:55.4]} 38. Rxe5 {[%clk 0:00:33]}
38... Nxe5 {[%clk 0:00:56.3]} 39. Kg3 {[%clk 0:00:33.5]} 39... Kf6 {[%clk
0:00:53.1]} 40. h4 {[%clk 0:00:32.6]} 40... c4 {[%clk 0:00:47.5]} 41. bxc4
{[%clk 0:00:29]} 41... Nxc4 {[%clk 0:00:48.4]} 42. Rd7 {[%clk 0:00:28.5]} 42...
c5 {[%clk 0:00:45.5]} 43. Kf4 {[%clk 0:00:28.5]} 43... Kg6 {[%clk 0:00:42.2]}
44. Rd8 {[%clk 0:00:25.1]} 44... f6 {[%clk 0:00:41]} 45. Rg8+ {[%clk 0:00:24]}
45... Kf7 {[%clk 0:00:40.8]} 46. Rb8 {[%clk 0:00:22.1]} 46... Kg6 {[%clk
0:00:40.6]} 47. Rg8+ {[%clk 0:00:21.7]} 47... Kh5 {[%clk 0:00:37.1]} 48. Rh8+
{[%clk 0:00:21]} 48... Kg6 {[%clk 0:00:37.4]} 49. h5+ {[%clk 0:00:21]} 49... Kg7
{[%clk 0:00:37.8]} 50. Rb8 {[%clk 0:00:18.8]} 50... Kh6 {[%clk 0:00:37.6]} 51.
Kg4 {[%clk 0:00:18.2]} 51... Ne3+ {[%clk 0:00:32.3]} 52. Kf4 {[%clk 0:00:16.6]}
52... Nc4 {[%clk 0:00:32.3]} 53. Kf5 {[%clk 0:00:14.7]} 53... Ne3+ {[%clk
0:00:24.3]} 54. Kf4 {[%clk 0:00:13.9]} 54... Nc4 {[%clk 0:00:24.3]} 1/2-1/2

[Event "*** SCC Grand Prix: Titled Tuesday Blitz"]
[Site "Chess.com"]
[Date "2020.06.02"]
[Round "10"]
[White "Orest_Vovk"]
[Black "GregShahade"]
[Result "1-0"]
[WhiteElo "2403"]
[BlackElo "2554"]
[TimeControl "180+1"]
[EndTime "11:58:47 PDT"]
[Termination "Orest_Vovk won on time"]

1. h4 {[%clk 0:03:00.9]} 1... e5 {[%clk 0:02:56.5]} 2. h5 {[%clk 0:02:57.6]}
2... h6 {[%clk 0:02:54.6]} 3. Nc3 {[%clk 0:02:54.5]} 3... d5 {[%clk 0:02:54.1]}
4. e4 {[%clk 0:02:54.5]} 4... d4 {[%clk 0:02:53.3]} 5. Nce2 {[%clk 0:02:53.9]}
5... Nf6 {[%clk 0:02:49.5]} 6. Ng3 {[%clk 0:02:53.2]} 6... Be6 {[%clk
0:02:43.6]} 7. Nf3 {[%clk 0:02:49.8]} 7... Bd6 {[%clk 0:02:39.6]} 8. Bb5+ {[%clk
0:02:40.6]} 8... c6 {[%clk 0:02:39.2]} 9. Ba4 {[%clk 0:02:40.5]} 9... Nbd7
{[%clk 0:02:36.9]} 10. Bb3 {[%clk 0:02:40.3]} 10... Bxb3 {[%clk 0:02:30.7]} 11.
axb3 {[%clk 0:02:41.2]} 11... Qc7 {[%clk 0:02:29.3]} 12. d3 {[%clk 0:02:37.5]}
12... a6 {[%clk 0:02:27.5]} 13. Nf5 {[%clk 0:02:35]} 13... Rg8 {[%clk
0:02:26.4]} 14. Bd2 {[%clk 0:02:26.2]} 14... Bc5 {[%clk 0:01:58.1]} 15. Ba5
{[%clk 0:02:09.3]} 15... Bb6 {[%clk 0:01:40.6]} 16. Bxb6 {[%clk 0:02:01.5]}
16... Nxb6 {[%clk 0:01:41.5]} 17. Qd2 {[%clk 0:01:56]} 17... O-O-O {[%clk
0:01:29.8]} 18. Qa5 {[%clk 0:01:54.6]} 18... Rde8 {[%clk 0:01:15.9]} 19. Qc5
{[%clk 0:01:21.8]} 19... Re6 {[%clk 0:01:10.3]} 20. Nd2 {[%clk 0:00:50.3]} 20...
Kb8 {[%clk 0:01:04]} 21. Nc4 {[%clk 0:00:44.8]} 21... Nxc4 {[%clk 0:01:02.9]}
22. bxc4 {[%clk 0:00:44.5]} 22... Ne8 {[%clk 0:00:51.5]} 23. Rh3 {[%clk
0:00:37.9]} 23... Nd6 {[%clk 0:00:47.8]} 24. Rf3 {[%clk 0:00:31.4]} 24... Nxf5
{[%clk 0:00:46.1]} 25. Rxf5 {[%clk 0:00:30.6]} 25... f6 {[%clk 0:00:45]} 26. Qb4
{[%clk 0:00:24.8]} 26... Kc8 {[%clk 0:00:31.6]} 27. c5 {[%clk 0:00:23.9]} 27...
Kd7 {[%clk 0:00:28]} 28. Qc4 {[%clk 0:00:22.6]} 28... Ke7 {[%clk 0:00:26.5]} 29.
Ke2 {[%clk 0:00:21.5]} 29... Qd7 {[%clk 0:00:26.1]} 30. Rh1 {[%clk 0:00:16.9]}
30... Rd8 {[%clk 0:00:24.9]} 31. Rh3 {[%clk 0:00:16.3]} 31... Kf8 {[%clk
0:00:24.6]} 32. Rg3 {[%clk 0:00:16.2]} 32... Rde8 {[%clk 0:00:23.1]} 33. Rg6
{[%clk 0:00:16.2]} 33... R8e7 {[%clk 0:00:23.1]} 34. g4 {[%clk 0:00:15.8]} 34...
Rf7 {[%clk 0:00:23.4]} 35. g5 {[%clk 0:00:13.8]} 35... hxg5 {[%clk 0:00:18.7]}
36. Rfxg5 {[%clk 0:00:13.5]} 36... Ke8 {[%clk 0:00:08.3]} 37. Rf5 {[%clk
0:00:12]} 37... Ke7 {[%clk 0:00:06.9]} 38. h6 {[%clk 0:00:11.7]} 38... gxh6
{[%clk 0:00:07.2]} 39. Rxh6 {[%clk 0:00:12.4]} 39... Qe8 {[%clk 0:00:07.7]} 40.
Qb3 {[%clk 0:00:09.9]} 40... Kd8 {[%clk 0:00:06.7]} 41. Qb6+ {[%clk 0:00:08.8]}
41... Kd7 {[%clk 0:00:05.3]} 42. Rfh5 {[%clk 0:00:09]} 42... Kc8 {[%clk
0:00:04]} 43. Rh8 {[%clk 0:00:08.2]} 43... Rf8 {[%clk 0:00:04.6]} 44. R8h7
{[%clk 0:00:08.5]} 44... Re7 {[%clk 0:00:03.5]} 45. Qa7 {[%clk 0:00:08.3]} 45...
Rxh7 {[%clk 0:00:03]} 46. Rxh7 {[%clk 0:00:08.5]} 1-0

[Event "*** SCC Grand Prix: Titled Tuesday Blitz"]
[Site "Chess.com"]
[Date "2020.06.02"]
[Round "10"]
[White "tamarozi99"]
[Black "DonPreuss"]
[Result "1-0"]
[WhiteElo "2054"]
[BlackElo "2221"]
[TimeControl "180+1"]
[EndTime "11:58:50 PDT"]
[Termination "tamarozi99 won on time"]

1. e4 {[%clk 0:03:00.9]} 1... e5 {[%clk 0:02:58.9]} 2. Nf3 {[%clk 0:03:00.5]}
2... d5 {[%clk 0:02:59.5]} 3. d4 {[%clk 0:02:49]} 3... dxe4 {[%clk 0:02:59.3]}
4. Nxe5 {[%clk 0:02:48.9]} 4... Bd6 {[%clk 0:02:59.8]} 5. Nc3 {[%clk 0:02:42.6]}
5... Bxe5 {[%clk 0:02:59.9]} 6. dxe5 {[%clk 0:02:43]} 6... Qxd1+ {[%clk
0:03:00.8]} 7. Kxd1 {[%clk 0:02:40.3]} 7... Nc6 {[%clk 0:03:01.4]} 8. Bb5 {[%clk
0:02:38.3]} 8... Bg4+ {[%clk 0:03:01.1]} 9. Ke1 {[%clk 0:02:31.4]} 9... Ne7
{[%clk 0:02:35.4]} 10. Nxe4 {[%clk 0:02:23]} 10... O-O-O {[%clk 0:02:35.2]} 11.
Bg5 {[%clk 0:02:18.9]} 11... Rd4 {[%clk 0:02:19.1]} 12. f3 {[%clk 0:01:59.1]}
12... Bf5 {[%clk 0:02:05]} 13. Rd1 {[%clk 0:01:32.2]} 13... Rxd1+ {[%clk
0:02:04.7]} 14. Kxd1 {[%clk 0:01:31.8]} 14... Bxe4 {[%clk 0:02:05.1]} 15. fxe4
{[%clk 0:01:30.5]} 15... Ng6 {[%clk 0:02:04.2]} 16. Bxc6 {[%clk 0:01:21.3]}
16... bxc6 {[%clk 0:02:05.1]} 17. Rf1 {[%clk 0:01:16.9]} 17... Nxe5 {[%clk
0:02:04.1]} 18. Ke2 {[%clk 0:01:12.3]} 18... f6 {[%clk 0:02:00.9]} 19. Be3
{[%clk 0:01:08.6]} 19... a6 {[%clk 0:01:54.4]} 20. b3 {[%clk 0:01:07.9]} 20...
Re8 {[%clk 0:01:54]} 21. Rd1 {[%clk 0:01:00.8]} 21... Nf7 {[%clk 0:01:51]} 22.
Kf3 {[%clk 0:00:57.9]} 22... Nd6 {[%clk 0:01:50.1]} 23. Rd4 {[%clk 0:00:51.4]}
23... Kb7 {[%clk 0:01:44]} 24. Rb4+ {[%clk 0:00:44.9]} 24... Kc8 {[%clk
0:01:42.6]} 25. Ra4 {[%clk 0:00:39]} 25... Kd7 {[%clk 0:01:41]} 26. Rxa6 {[%clk
0:00:32.9]} 26... Nxe4 {[%clk 0:01:41]} 27. Ra7 {[%clk 0:00:27.9]} 27... Nc3
{[%clk 0:01:36.8]} 28. a4 {[%clk 0:00:23.8]} 28... g5 {[%clk 0:01:24.3]} 29. a5
{[%clk 0:00:23]} 29... Nb5 {[%clk 0:01:12.5]} 30. Rb7 {[%clk 0:00:19.5]} 30...
Ra8 {[%clk 0:00:55]} 31. c4 {[%clk 0:00:18]} 31... Kc8 {[%clk 0:00:31.3]} 32. a6
{[%clk 0:00:13.5]} 32... Nd6 {[%clk 0:00:31.5]} 33. Ra7 {[%clk 0:00:13.5]} 33...
Rb8 {[%clk 0:00:29]} 34. Kg4 {[%clk 0:00:09.2]} 34... Rxb3 {[%clk 0:00:25.4]}
35. Bd4 {[%clk 0:00:09.5]} 35... f5+ {[%clk 0:00:13.1]} 36. Kxg5 {[%clk
0:00:09.2]} 36... Nxc4 {[%clk 0:00:10.8]} 37. Ra8+ {[%clk 0:00:09]} 37... Rb8
{[%clk 0:00:10.2]} 38. Rxb8+ {[%clk 0:00:09.1]} 38... Kxb8 {[%clk 0:00:10.3]}
39. Kxf5 {[%clk 0:00:08.9]} 39... Nd6+ {[%clk 0:00:08.2]} 40. Ke6 {[%clk
0:00:08.4]} 40... Nb5 {[%clk 0:00:07.2]} 41. Bc5 {[%clk 0:00:07.6]} 41... Nc3
{[%clk 0:00:03.2]} 42. Kf7 {[%clk 0:00:06.3]} 42... Ne4 {[%clk 0:00:03.3]} 43.
Kg7 {[%clk 0:00:06.1]} 43... Nxc5 {[%clk 0:00:03]} 44. Kxh7 {[%clk 0:00:06.5]}
1-0

[Event "*** SCC Grand Prix: Titled Tuesday Blitz"]
[Site "Chess.com"]
[Date "2020.06.02"]
[Round "10"]
[White "FairChess_on_YouTube"]
[Black "RaunakSadhwani2005"]
[Result "1-0"]
[WhiteElo "3011"]
[BlackElo "2887"]
[TimeControl "180+1"]
[EndTime "11:58:51 PDT"]
[Termination "FairChess_on_YouTube won on time"]

1. e4 {[%clk 0:03:00.9]} 1... c6 {[%clk 0:02:55.4]} 2. Nf3 {[%clk 0:03:00.3]}
2... d5 {[%clk 0:02:55.5]} 3. d3 {[%clk 0:03:00.8]} 3... Bg4 {[%clk 0:02:50.8]}
4. h3 {[%clk 0:03:00]} 4... Bh5 {[%clk 0:02:50.8]} 5. Qe2 {[%clk 0:02:58.6]}
5... Nd7 {[%clk 0:02:41.6]} 6. g4 {[%clk 0:02:54.4]} 6... Bg6 {[%clk 0:02:41.4]}
7. Nh4 {[%clk 0:02:54.6]} 7... e6 {[%clk 0:02:39.9]} 8. Nxg6 {[%clk 0:02:54.4]}
8... hxg6 {[%clk 0:02:40.8]} 9. Bg2 {[%clk 0:02:54.2]} 9... Ngf6 {[%clk
0:02:36.8]} 10. Nc3 {[%clk 0:02:43.7]} 10... Be7 {[%clk 0:02:10.9]} 11. Bd2
{[%clk 0:02:38.5]} 11... Qb6 {[%clk 0:02:02.5]} 12. O-O-O {[%clk 0:02:37.1]}
12... d4 {[%clk 0:02:00.5]} 13. Nb1 {[%clk 0:02:35.4]} 13... Qa6 {[%clk
0:01:55.6]} 14. a3 {[%clk 0:02:32.6]} 14... b5 {[%clk 0:01:55.4]} 15. g5 {[%clk
0:02:24.8]} 15... Nh5 {[%clk 0:01:55.3]} 16. e5 {[%clk 0:02:17.5]} 16... Rb8
{[%clk 0:01:43]} 17. Qe4 {[%clk 0:01:44.8]} 17... Rb6 {[%clk 0:01:32.5]} 18.
Qxd4 {[%clk 0:01:37.1]} 18... c5 {[%clk 0:01:27]} 19. Qe4 {[%clk 0:01:29.3]}
19... O-O {[%clk 0:01:23.3]} 20. Bf3 {[%clk 0:01:18.4]} 20... b4 {[%clk
0:01:18.2]} 21. Qc4 {[%clk 0:01:11.3]} 21... Qxc4 {[%clk 0:01:06.5]} 22. dxc4
{[%clk 0:01:10.9]} 22... Nxe5 {[%clk 0:01:07]} 23. Be2 {[%clk 0:01:07.8]} 23...
b3 {[%clk 0:00:42.5]} 24. Nc3 {[%clk 0:01:02.8]} 24... Rfb8 {[%clk 0:00:40]} 25.
Na4 {[%clk 0:00:53.6]} 25... bxc2 {[%clk 0:00:18.5]} 26. Kxc2 {[%clk 0:00:51]}
26... R6b7 {[%clk 0:00:19.1]} 27. Bc3 {[%clk 0:00:47.1]} 27... Nc6 {[%clk
0:00:14.2]} 28. Bf3 {[%clk 0:00:47.1]} 28... Rc8 {[%clk 0:00:14.5]} 29. h4
{[%clk 0:00:37.1]} 29... Nf4 {[%clk 0:00:05.3]} 30. Rhe1 {[%clk 0:00:37.5]}
30... Bf8 {[%clk 0:00:04.1]} 31. Re4 {[%clk 0:00:34.8]} 31... Nh5 {[%clk
0:00:04.6]} 32. Re2 {[%clk 0:00:27.3]} 32... Rbc7 {[%clk 0:00:05.1]} 33. Red2
{[%clk 0:00:26.7]} 33... Ne7 {[%clk 0:00:05.1]} 34. Be5 {[%clk 0:00:24.7]} 34...
Nf5 {[%clk 0:00:05.5]} 35. Bxc7 {[%clk 0:00:20.5]} 35... Rxc7 {[%clk 0:00:06.4]}
36. Bxh5 {[%clk 0:00:18]} 36... gxh5 {[%clk 0:00:06.4]} 37. Rd8 {[%clk
0:00:18.5]} 37... Nxh4 {[%clk 0:00:06.4]} 38. Nc3 {[%clk 0:00:16.9]} 38... Ng6
{[%clk 0:00:05.1]} 39. Nb5 {[%clk 0:00:15.3]} 39... Rb7 {[%clk 0:00:03.7]} 40.
R1d7 {[%clk 0:00:15.4]} 40... Rxd7 {[%clk 0:00:03.5]} 41. Rxd7 {[%clk
0:00:16.3]} 41... h4 {[%clk 0:00:04.4]} 42. Nxa7 {[%clk 0:00:15.5]} 42... h3
{[%clk 0:00:04.8]} 43. Rd1 {[%clk 0:00:15.5]} 43... h2 {[%clk 0:00:04.1]} 44.
Nc8 {[%clk 0:00:14.6]} 44... Nh4 {[%clk 0:00:03.6]} 45. Rh1 {[%clk 0:00:14.4]}
45... Nf3 {[%clk 0:00:04.1]} 46. a4 {[%clk 0:00:14.6]} 46... f6 {[%clk
0:00:02.2]} 47. g6 {[%clk 0:00:13.6]} 1-0

[Event "*** SCC Grand Prix: Titled Tuesday Blitz"]
[Site "Chess.com"]
[Date "2020.06.02"]
[Round "10"]
[White "ftorodent"]
[Black "PlayChessSimple"]
[Result "1-0"]
[WhiteElo "2657"]
[BlackElo "2525"]
[TimeControl "180+1"]
[EndTime "11:58:51 PDT"]
[Termination "ftorodent won on time"]

1. d4 {[%clk 0:03:00.9]} 1... e6 {[%clk 0:02:59.9]} 2. c4 {[%clk 0:03:00.7]}
2... f5 {[%clk 0:03:00.5]} 3. g3 {[%clk 0:02:59.4]} 3... Nf6 {[%clk 0:03:00.3]}
4. Bg2 {[%clk 0:02:59.6]} 4... g6 {[%clk 0:03:00.9]} 5. Nc3 {[%clk 0:02:57.7]}
5... Bg7 {[%clk 0:03:00.5]} 6. e4 {[%clk 0:02:52.8]} 6... fxe4 {[%clk
0:03:00.1]} 7. Nxe4 {[%clk 0:02:52.8]} 7... Nxe4 {[%clk 0:03:00.6]} 8. Bxe4
{[%clk 0:02:52.9]} 8... d5 {[%clk 0:03:01.2]} 9. Bg2 {[%clk 0:02:43.4]} 9... O-O
{[%clk 0:02:58.5]} 10. Nf3 {[%clk 0:02:42.3]} 10... dxc4 {[%clk 0:02:57.7]} 11.
O-O {[%clk 0:02:41.9]} 11... Nc6 {[%clk 0:02:57.9]} 12. Be3 {[%clk 0:02:41.1]}
12... e5 {[%clk 0:02:54.9]} 13. d5 {[%clk 0:02:37]} 13... Ne7 {[%clk 0:02:35.8]}
14. Ng5 {[%clk 0:02:36]} 14... Nf5 {[%clk 0:02:30.4]} 15. Ne4 {[%clk 0:02:20.6]}
15... Nxe3 {[%clk 0:02:26.2]} 16. fxe3 {[%clk 0:02:20.7]} 16... Bf5 {[%clk
0:02:26.7]} 17. Qa4 {[%clk 0:02:12.9]} 17... Bxe4 {[%clk 0:02:20]} 18. Bxe4
{[%clk 0:02:12.8]} 18... Qg5 {[%clk 0:02:19.4]} 19. Rfe1 {[%clk 0:02:07]} 19...
Rf7 {[%clk 0:02:00.4]} 20. Qxc4 {[%clk 0:02:06.7]} 20... Raf8 {[%clk 0:01:59.3]}
21. Re2 {[%clk 0:02:07]} 21... Qg4 {[%clk 0:01:50]} 22. d6 {[%clk 0:01:58.6]}
22... b5 {[%clk 0:01:26.2]} 23. Qd3 {[%clk 0:01:57.6]} 23... Rd7 {[%clk
0:00:56.2]} 24. Qxb5 {[%clk 0:01:29]} 24... Rxd6 {[%clk 0:00:50.6]} 25. Qc4+
{[%clk 0:01:23.6]} 25... Kh8 {[%clk 0:00:49.5]} 26. Rae1 {[%clk 0:01:23.5]}
26... Rdf6 {[%clk 0:00:35.8]} 27. Bd5 {[%clk 0:01:13.3]} 27... Qxc4 {[%clk
0:00:31.1]} 28. Bxc4 {[%clk 0:01:13]} 28... e4 {[%clk 0:00:31.8]} 29. Rd1 {[%clk
0:01:08.6]} 29... Rd6 {[%clk 0:00:27.8]} 30. Rxd6 {[%clk 0:01:06]} 30... cxd6
{[%clk 0:00:28]} 31. Bd5 {[%clk 0:01:06.3]} 31... Rb8 {[%clk 0:00:28.2]} 32. b3
{[%clk 0:01:05.3]} 32... Rb4 {[%clk 0:00:26.8]} 33. Rc2 {[%clk 0:01:02.7]} 33...
Be5 {[%clk 0:00:22.1]} 34. Rc7 {[%clk 0:00:54.6]} 34... Rb5 {[%clk 0:00:19.2]}
35. Bxe4 {[%clk 0:00:47.5]} 35... a5 {[%clk 0:00:19.1]} 36. Ra7 {[%clk
0:00:36.5]} 36... Rc5 {[%clk 0:00:16.9]} 37. Bd3 {[%clk 0:00:30.7]} 37... Rc3
{[%clk 0:00:14]} 38. Bc4 {[%clk 0:00:30.1]} 38... Rxe3 {[%clk 0:00:10.4]} 39.
Rxa5 {[%clk 0:00:29.6]} 39... Kg7 {[%clk 0:00:10.5]} 40. Kf2 {[%clk 0:00:26.7]}
40... Bd4 {[%clk 0:00:09.4]} 41. Rd5 {[%clk 0:00:25.6]} 41... Rd3+ {[%clk
0:00:07.8]} 42. Ke2 {[%clk 0:00:23]} 42... Re3+ {[%clk 0:00:07.8]} 43. Kd2
{[%clk 0:00:23.1]} 43... Bb6 {[%clk 0:00:04.1]} 44. Rxd6 {[%clk 0:00:23]} 44...
Bc5 {[%clk 0:00:04.4]} 45. Rd5 {[%clk 0:00:22.9]} 45... Bb6 {[%clk 0:00:04.7]}
46. a4 {[%clk 0:00:23.4]} 46... Re4 {[%clk 0:00:02.5]} 47. Kd3 {[%clk
0:00:20.8]} 47... Re3+ {[%clk 0:00:02.6]} 48. Kd2 {[%clk 0:00:21.1]} 48... Re4
{[%clk 0:00:03.1]} 49. a5 {[%clk 0:00:20.5]} 49... Bg1 {[%clk 0:00:01.6]} 50. a6
{[%clk 0:00:18.7]} 1-0

[Event "*** SCC Grand Prix: Titled Tuesday Blitz"]
[Site "Chess.com"]
[Date "2020.06.02"]
[Round "10"]
[White "Dmitry_M1"]
[Black "LamaChampetre"]
[Result "1/2-1/2"]
[WhiteElo "2382"]
[BlackElo "2222"]
[TimeControl "180+1"]
[EndTime "11:58:51 PDT"]
[Termination "Game drawn by repetition"]

1. d4 {[%clk 0:02:59.6]} 1... Nf6 {[%clk 0:02:59.3]} 2. c4 {[%clk 0:03:00.1]}
2... g6 {[%clk 0:02:59.5]} 3. Nc3 {[%clk 0:02:59.8]} 3... d5 {[%clk 0:02:59.9]}
4. Nf3 {[%clk 0:02:59.6]} 4... Bg7 {[%clk 0:02:59.6]} 5. Bg5 {[%clk 0:03:00.2]}
5... Ne4 {[%clk 0:02:59.3]} 6. cxd5 {[%clk 0:03:00.7]} 6... Nxg5 {[%clk
0:02:44.8]} 7. Nxg5 {[%clk 0:03:01.6]} 7... e6 {[%clk 0:02:43.9]} 8. Nf3 {[%clk
0:02:59.8]} 8... exd5 {[%clk 0:02:39.9]} 9. e3 {[%clk 0:03:00.3]} 9... O-O
{[%clk 0:02:39]} 10. b4 {[%clk 0:03:00.9]} 10... b6 {[%clk 0:02:32.1]} 11. Qb3
{[%clk 0:02:51.1]} 11... Be6 {[%clk 0:02:28.2]} 12. b5 {[%clk 0:02:39]} 12... c5
{[%clk 0:02:24.9]} 13. Be2 {[%clk 0:02:32.3]} 13... c4 {[%clk 0:02:09.4]} 14.
Qb4 {[%clk 0:02:19.9]} 14... a5 {[%clk 0:02:07.1]} 15. bxa6 {[%clk 0:02:18.2]}
15... Nxa6 {[%clk 0:02:07]} 16. Qb2 {[%clk 0:02:18.3]} 16... Qe7 {[%clk
0:01:24.2]} 17. O-O {[%clk 0:02:10.8]} 17... Rfb8 {[%clk 0:01:22.5]} 18. a4
{[%clk 0:02:06.7]} 18... Nb4 {[%clk 0:01:19.8]} 19. Rfb1 {[%clk 0:01:59.9]}
19... Nc6 {[%clk 0:01:18.9]} 20. Nb5 {[%clk 0:01:44.3]} 20... Na5 {[%clk
0:01:15.3]} 21. Ne5 {[%clk 0:01:21.4]} 21... Bf5 {[%clk 0:01:03.5]} 22. Rd1
{[%clk 0:01:16]} 22... Bxe5 {[%clk 0:00:59.4]} 23. dxe5 {[%clk 0:01:15.7]} 23...
Nb3 {[%clk 0:00:59.5]} 24. Ra2 {[%clk 0:01:06.9]} 24... Be6 {[%clk 0:00:38.6]}
25. Nd4 {[%clk 0:00:49.4]} 25... Qc5 {[%clk 0:00:32.4]} 26. Ra3 {[%clk
0:00:27.8]} 26... Nxd4 {[%clk 0:00:23.4]} 27. exd4 {[%clk 0:00:21.4]} 27... Qa5
{[%clk 0:00:23.1]} 28. Rda1 {[%clk 0:00:19]} 28... Qa7 {[%clk 0:00:18]} 29. h3
{[%clk 0:00:14.2]} 29... Qc7 {[%clk 0:00:17.8]} 30. Qb4 {[%clk 0:00:12.9]} 30...
Ra5 {[%clk 0:00:17.3]} 31. f4 {[%clk 0:00:06.2]} 31... b5 {[%clk 0:00:17.5]} 32.
axb5 {[%clk 0:00:05]} 32... Raxb5 {[%clk 0:00:18.4]} 33. Qc3 {[%clk 0:00:05.4]}
33... Rb3 {[%clk 0:00:17.6]} 34. Rxb3 {[%clk 0:00:04.6]} 34... Rxb3 {[%clk
0:00:18.5]} 35. Qa5 {[%clk 0:00:03.4]} 35... Qb8 {[%clk 0:00:17.4]} 36. Kh2
{[%clk 0:00:03.2]} 36... Kg7 {[%clk 0:00:16.9]} 37. Qc5 {[%clk 0:00:03.6]} 37...
Rb2 {[%clk 0:00:16.2]} 38. Bf3 {[%clk 0:00:02.7]} 38... Qb3 {[%clk 0:00:14.1]}
39. Qe7 {[%clk 0:00:02.8]} 39... Qxf3 {[%clk 0:00:09.5]} 40. Qf6+ {[%clk
0:00:02.8]} 40... Kh6 {[%clk 0:00:09.9]} 41. Qg5+ {[%clk 0:00:03]} 41... Kg7
{[%clk 0:00:10.1]} 42. Qf6+ {[%clk 0:00:03.4]} 42... Kh6 {[%clk 0:00:10.3]} 43.
Qg5+ {[%clk 0:00:03.8]} 43... Kg7 {[%clk 0:00:10.5]} 44. Qf6+ {[%clk 0:00:04.3]}
1/2-1/2